Workbook

Sheet Tunnel Cost
D2: Tunnel Construction Costs © Rocketwaveuk | M2: Unlocked
B6: Tube Tunnel Design
H7: Dimensions Of Tunnel ( 2 decimal places ) | P7: Basic Trigonometry
P8: A° SIN= O/H | Q8: =Q19/Q17 -> 0.8 | S8: Pie Drawing Of Tunnel
P9: ASIN = | Q9: =ASIN(Q8) -> 0.927295218
I10: Radius Mtrˢ | L10: 6 | P10: Degrees = | Q10: =DEGREES(Q9) -> 53.13010235 | S10: =IF(L10>10,10,L10) -> 6
I11: ° at M (Section AC) | L11: 80 | P11: B° SIN = O/H | Q11: =Q18/Q17 -> 0.6 | S11: =(360-((S10+S12)*2))/2 -> 134
I12: Length A B mtrˢ | L12: =L31 -> 3.856725658 | P12: ASIN = | Q12: =ASIN(Q11) -> 0.6435011088 | S12: =L11/2 -> 40
I13: Length M B mtrˢ | L13: =L33 -> 4.596266659 | P13: Degrees = | Q13: =DEGREES(Q12) -> 36.86989765 | S13: =L11/2 -> 40
I14: Internal Height Tunnel mtrˢ | L14: =(L10*2)-L13 -> 7.403733341 | S14: =(360-((S10+S12)*2))/2 -> 134
I15: Angles° @ A & C | L15: =90-(L11/2) -> 50 | P15: Test & Try Values Below | S15: =IF(L10>10,10,L10) -> 6
I16: Area Circle mtr² | L16: =PI()*(L10*L10) -> 113.0973355 | P16: Find Hypotenuse
I17: Area Circle Section mtr² | L17: =(L11/360)*L16 -> 25.13274123 | P17: HYP | Q17: =SQRT((Q18*Q18)+(Q19*Q19)) -> 10
I18: Area Triangle mtr² | L18: =L12*L13 -> 17.72653955 | P18: AJC | Q18: =Q36 -> 6
B19: A° | F19: C° | I19: Area Chord mtr² | L19: =L17-L18 -> 7.406201674 | P19: OPP | Q19: =Q37 -> 8 | S19: Value of PI | U19: =PI() -> 3.141592654
I20: Area Tunnel Sect mtr² | L20: =L16-L19 -> 105.6911339 | S20: 360° / (Deg 1 Radian) | U20: =360/DEGREES(1) -> 6.283185307
I21: Volume Tunnel mtr³ | L21: =L20*E23 -> 1056911.339 | P21: Test & Try Values Below | S21: 360° / ( Deg 2 Radian ) | U21: =360/(DEGREES(2)) -> 3.141592654
P22: Find Adjacent | S22: 180ᵒ / ( 1 Radian ) | U22: =180/(DEGREES(1)) -> 3.141592654
B23: Tunnel Length mtrˢ | E23: 10000 | P23: HYP | Q23: =Q35 -> 10 | S23: Deg( 1 Radian ) | U23: =DEGREES(1) -> 57.29577951
B24: Actual length in Kilometres | E24: =E23/1000 -> 10 | P24: AJC | Q24: =SQRT((Q23*Q23)-(Q25*Q25)) -> 6 | S24: 2 * PI * (Deg ( 1 Radian )) | U24: =U23*U20 -> 360
B25: Excavated Per Day mtr³ | E25: 1500 | P25: OPP | Q25: =Q37 -> 8
B26: Days req to complete | E26: =ROUNDUP((L21/E25),0) -> 705
B27: Size of trucks mtr³ | E27: 30 | I27: 1 Radian = circumfrance / | L27: 6.283185307 | P27: Test & Try Values Below
B28: Number of truck loads req | E28: =ROUNDUP(L21/E27,0) -> 35231 | I28: Tunnel Informational Data | P28: Find Opposite
B29: Number of truck loads per day | E29: =ROUNDUP(E25/E27,0) -> 50 | I29: Radians (deg) | L29: =RADIANS((L11/2)) -> 0.6981317008 | P29: HYP | Q29: =Q35 -> 10
B30: Average Trucks Req Per Day | E30: =ROUND(E29/8,0) -> 6 | I30: Sin (Radians) | L30: =SIN(L29) -> 0.6427876097 | P30: AJC | Q30: =Q36 -> 6
B31: Cost of truck Per Load | E31: 185 | I31: Opp = (Sin * Hyp) | L31: =L10*L30 -> 3.856725658 | P31: OPP | Q31: =SQRT((Q29*Q29)-(Q30*Q30)) -> 8
B32: Total cost of trucks per day | E32: =E29*E31 -> 9250 | I32: Cos (Radians) | L32: =COS(L29) -> 0.7660444431
B33: Cost in Millions For Trucks | E33: =(E28*E31)/1000000 -> 6.517735 | I33: Ajc = Cos * Hyp | L33: =L10*L32 -> 4.596266659
P34: Enter The Values Here
B35: Digger Costs | P35: HYP | Q35: 10
B36: Number Of Days Required | E36: =E26 -> 705 | H36: These colour sells are Not locked | P36: AJC | Q36: 6
B37: Machine Hire Cost | E37: 4200 | P37: OPP | Q37: 8
B38: Drivers Per Day | E38: 125 | H38: Total Trucks Costs | L38: =(E28*E31) -> 6517735
B39: Total Digger Costs | E39: =(E38+E37)*E36 -> 3049125 | H39: Total Digger Costs | L39: =(E38+E37)*E36 -> 3049125
H40: Total Cost Complete | L40: =E39+(E33*1000000) -> 9566860
